bitfinex/quotes_SOLUSD_20240727
["timestamp","ask_amount","ask_price","bid_price","bid_amount"]
[1722091852291,25.3934,185.41,185.4,0.7720348]
[1722091853004,20.0,185.41,185.4,0.7720348]
[1722091853308,5.3932,185.42,185.4,0.7720348]
[1722091853309,22.6892,185.45,185.4,0.7720348]
[1722091853494,20.0,185.44,185.4,0.7720348]
[1722091853685,21.07353351,185.44,185.4,0.7720348]
[1722091853890,5.3934,185.41,185.4,0.7720348]
[1722091854606,5.3931,185.42,185.4,0.7720348]
[1722091854806,5.3934,185.41,185.4,0.7720348]
[1722091855009,5.3931,185.42,185.4,0.7720348]
[1722091855188,5.3929,185.43,185.4,0.7720348]
[1722091855388,20.0,185.44,185.4,0.7720348]
[1722091855589,25.3926,185.44,185.4,45.7720348]
[1722091855991,20.0,185.44,185.4,45.7720348]
[1722091856196,5.3931,185.43,185.4,0.7720348]
[1722091857107,20.0,185.44,185.4,0.7720348]
[1722091857312,16.0358,185.51,185.4,0.7720348]
[1722091857510,1.07353351,185.5,185.4,0.7720348]
[1722091858016,5.3925,185.45,185.4,0.7720348]
[1722091858890,5.392,185.46,185.4,6.1656348]
[1722091859089,26.46583351,185.45,185.41,45.0]
[1722091859308,25.3923,185.45,185.4,0.7720348]
[1722091859713,20.0,185.45,185.4,0.7720348]
[1722091859912,5.3928,185.44,185.4,0.7720348]
[1722091860296,25.3928,185.43,185.4,0.7720348]
[1722091860499,5.3928,185.43,185.4,0.7720348]
[1722091860710,5.3924,185.45,185.4,0.7720348]
[1722091860915,20.0,185.44,185.4,0.7720348]
[1722091861626,1.07353351,185.45,185.4,0.7720348]
[1722091861627,5.3931,185.43,185.4,0.7720348]
[1722091862615,21.07353351,185.47,185.4,0.7720348]
[1722091862916,5.3928,185.44,185.4,0.7720348]
[1722091863110,1.07353351,185.45,185.4,0.7720348]
[1722091863335,5.3926,185.44,185.4,0.7720348]
[1722091864394,5.3934,185.41,185.4,0.7720348]
[1722091864595,1.07353351,185.48,185.4,0.7720348]
[1722091864791,5.3934,185.41,185.4,0.7720348]
[1722091865010,25.3934,185.41,185.4,0.7720348]
[1722091866205,1.07353351,185.45,185.4,0.7720348]
[1722091866404,20.0,185.41,185.4,0.7720348]
[1722091867905,25.3934,185.41,185.4,0.7720348]
[1722091870513,20.0,185.41,185.4,0.7720348]
[1722091876429,25.3934,185.41,185.4,0.7720348]
[1722091876618,25.3934,185.41,185.4,0.2720348]
[1722091876802,20.0,185.41,185.4,0.2720348]
[1722091879727,7.5667928,185.44,185.4,0.2720348]
[1722091879931,2.1741928,185.44,185.4,0.2720348]
[1722091880128,1.07353351,185.48,185.4,0.2720348]
[1722091880333,5.3931,185.43,185.4,0.2720348]
[1722091882630,5.3926,185.44,185.4,0.2720348]
[1722091882831,20.0,185.43,185.4,0.2720348]
[1722091883939,3.22680736,185.48,185.4,5.6656348]
[1722091884116,5.3926,185.44,185.4,0.2720348]
[1722091886123,1.07353351,185.43,185.4,0.2720348]
[1722091886437,6.46643351,185.43,185.4,0.2720348]
[1722091886638,1.07353351,185.42,185.4,0.2720348]
[1722091886826,5.3932,185.42,185.4,0.2720348]
[1722091887535,5.3928,185.43,185.4,0.2720348]
[1722091887920,5.3933,185.42,185.4,0.2720348]
[1722091888333,14.55293351,185.47,185.4,0.2720348]
[1722091888522,20.17,185.46,185.4,0.2720348]
[1722091888733,29.89908364,185.46,185.4,0.2720348]
[1722091888929,9.72908364,185.45,185.4,0.2720348]
[1722091889134,20.0,185.44,185.4,0.2720348]
[1722091889317,5.393,185.43,185.4,0.2720348]
[1722091889637,6.46673351,185.42,185.4,0.2720348]
[1722091890631,5.3934,185.41,185.4,0.2720348]
[1722091890847,20.0,185.44,185.4,0.2720348]
[1722091891028,21.24353351,185.46,185.4,0.2720348]
[1722091891341,9.72918746,185.45,185.4,0.2720348]
[1722091891637,20.0,185.44,185.4,0.2720348]
[1722091891833,1.07353351,185.43,185.4,0.2720348]
[1722091892036,20.0,185.43,185.4,0.2720348]
[1722091892228,5.3932,185.42,185.4,0.2720348]
[1722091892433,26.46693351,185.41,185.4,0.2720348]
[1722091892736,25.3934,185.41,185.4,0.2720348]
[1722091895339,20.0,185.41,185.4,0.2720348]
[1722091896551,25.3934,185.41,185.4,0.2720348]
[1722091897922,20.0,185.41,185.4,0.2720348]
[1722091898326,26.46693351,185.41,185.4,0.2720348]
[1722091900544,21.07353351,185.41,185.4,0.2720348]
[1722091900746,20.0,185.41,185.4,0.2720348]
[1722091901227,21.07353351,185.41,185.4,0.2720348]
[1722091902534,26.46693351,185.41,185.4,0.2720348]
[1722091902847,25.3934,185.41,185.4,0.2720348]
[1722091905156,35.12407186,185.41,185.4,0.2720348]
[1722091906342,25.3934,185.41,185.4,0.2720348]
[1722091907255,35.12387807,185.41,185.4,0.2720348]
[1722091907454,36.19741158,185.41,185.4,0.2720348]
[1722091908052,9.73047807,185.41,185.4,0.2720348]
[1722091908236,5.3929,185.43,185.4,0.2720348]
[1722091909957,20.0,185.42,185.4,0.2720348]
[1722091910466,5.3934,185.41,185.4,0.2720348]
[1722091910660,21.07353351,185.42,185.4,0.2720348]
[1722091910837,5.3934,185.41,185.4,0.2720348]
[1722091911155,25.3934,185.41,185.4,0.2720348]
[1722091912060,35.12353614,185.41,185.4,0.2720348]
[1722091915034,25.3934,185.41,185.4,0.2720348]
[1722091915252,35.12425435,185.41,185.4,0.2720348]
[1722091916868,29.73085435,185.41,185.4,0.2720348]
[1722091917565,35.12425435,185.41,185.4,0.2720348]
[1722091918151,29.73085435,185.41,185.4,0.2720348]
[1722091918463,29.73108122,185.41,185.4,0.2720348]
[1722091919169,20.0,185.41,185.4,0.2720348]
[1722091919543,25.3934,185.41,185.4,0.2720348]
[1722091921851,35.1240586,185.41,185.4,0.2720348]
[1722091922051,35.12406176,185.41,185.4,0.2720348]
[1722091922373,25.3934,185.41,185.4,0.2720348]
[1722091922746,26.46693351,185.41,185.4,0.2720348]
[1722091923063,25.3934,185.41,185.4,0.2720348]
[1722091923769,35.12428832,185.41,185.4,0.2720348]
[1722091924767,25.3934,185.41,185.4,0.2720348]
[1722091925263,35.12469719,185.41,185.4,0.2720348]
[1722091927373,35.29469719,185.41,185.4,0.2720348]
[1722091928174,25.5634,185.41,185.4,0.2720348]
[1722091928553,35.29479589,185.41,185.4,0.2720348]
[1722091930774,60.49479589,185.41,185.4,0.2720348]
[1722091931557,50.7634,185.41,185.4,0.2720348]
[1722091931760,60.49520501,185.41,185.4,0.2720348]
[1722091934277,61.56873852,185.41,185.4,0.2720348]
[1722091934669,51.83693351,185.41,185.4,0.2720348]
[1722091934996,61.56922438,185.41,185.4,0.2720348]
[1722091937157,36.19922438,185.41,185.4,0.2720348]
[1722091937354,15.12569087,185.41,185.4,0.2720348]
[1722091937554,40.32569087,185.41,185.4,0.2720348]
[1722091937985,30.5934,185.41,185.4,0.2720348]
[1722091938391,40.32490536,185.41,185.4,0.2720348]
[1722091938788,60.32490536,185.41,185.4,0.2720348]
[1722091939784,60.49490536,185.41,185.4,0.2720348]
[1722091941456,60.49567447,185.41,185.4,0.2720348]
[1722091941655,70.22794894,185.41,185.4,0.2720348]
[1722091941856,70.22794894,185.41,185.24,16.2658]
[1722091941857,102.63454894,185.41,185.24,16.2658]
[1722091942054,17.9964,185.31,185.24,16.2658]
[1722091942666,17.9964,185.31,185.25,5.398]
[1722091942667,5.3966,185.3,185.25,5.398]
[1722091942867,5.3969,185.29,185.24,21.6641]
[1722091943078,12.6,185.25,185.24,16.2658]
[1722091943267,12.6,185.25,185.2,5.3994]
[1722091943465,12.6,185.22,185.19,22.3415]
[1722091943878,12.6,185.22,185.2,5.3995]
[1722091944261,88.3989,185.22,185.15,5.4007]
[1722091944484,88.3989,185.22,185.14,6.0757]
[1722091944485,20.0,185.22,185.14,6.0757]
[1722091944696,5.3984,185.24,185.15,12.6]
[1722091944882,8.11465114,185.29,185.2,16.2658]
[1722091944883,2.18000592,185.29,185.2,16.2658]
[1722091945072,12.6,185.26,185.2,16.2658]
[1722091945264,12.6,185.23,185.2,16.2658]
[1722091945498,12.6,185.22,185.2,16.2658]
[1722091945666,12.6,185.22,185.16,103.80080294]
[1722091945868,12.6,185.22,185.16,98.40040294]
[1722091946995,12.6,185.22,185.19,5.3998]
[1722091947585,12.6,185.22,185.18,5.4001]
[1722091947901,12.6,185.22,185.16,98.40040294]
[1722091947902,17.9989,185.22,185.16,98.40040294]
[1722091948196,88.3989,185.22,185.16,82.13460294]
[1722091948388,88.5689,185.22,185.16,82.13460294]
[1722091948586,12.6,185.17,185.16,82.13460294]
[1722091949202,18.0004,185.17,185.16,82.13460294]
[1722091949567,12.6,185.17,185.16,82.13460294]
[1722091949781,14.56953351,185.24,185.16,82.13460294]
[1722091949782,5.58320106,185.3,185.17,22.4724]
[1722091949997,12.6,185.25,185.18,12.6]
[1722091950190,12.6,185.26,185.17,22.4724]
[1722091950387,12.6,185.27,185.22,5.3989]
[1722091951377,12.6,185.25,185.2,5.3995]
[1722091952379,12.6,185.23,185.17,22.4724]
[1722091952605,12.6,185.23,185.19,5.3997]
[1722091952788,12.6,185.24,185.19,5.3997]
[1722091952975,12.6,185.23,185.19,5.3997]
[1722091953425,12.6,185.23,185.18,5.4001]
[1722091953610,5.3981,185.25,185.19,5.3998]
[1722091953787,12.6,185.23,185.18,5.4001]
[1722091953987,20.0,185.24,185.17,22.4724]
[1722091954215,12.6,185.24,185.18,45.0]
[1722091954416,5.3976,185.27,185.21,5.3991]
[1722091954708,12.6,185.25,185.21,5.3991]
[1722091954916,37.9978,185.26,185.2,5.3995]
[1722091955401,5.3987,185.23,185.17,27.8728]
[1722091955606,12.6,185.24,185.17,22.4724]
[1722091955791,12.6,185.24,185.17,35.0724]
[1722091956887,1.07353351,185.23,185.17,22.4724]
[1722091957225,12.6,185.23,185.17,35.0724]
[1722091957430,12.6,185.25,185.2,5.3993]
[1722091957913,32.6,185.26,185.19,12.6]
[1722091958113,32.6,185.26,185.2,45.0]
[1722091958114,33.67353351,185.26,185.2,45.0]
[1722091958424,37.9979,185.26,185.2,50.3993]
[1722091958625,37.9979,185.26,185.21,5.3992]
[1722091959216,37.9979,185.26,185.2,50.3995]
[1722091959731,12.6,185.24,185.17,35.0724]
[1722091959934,17.9986,185.24,185.18,50.4001]
[1722091960135,17.9988,185.23,185.18,5.4]
[1722091960304,20.0,185.26,185.18,19.07987259]
[1722091960305,5.3984,185.24,185.18,19.07987259]
[1722091960730,20.0,185.23,185.18,12.6]
[1722091960956,17.9981,185.25,185.18,12.6]
[1722091960957,12.6,185.25,185.18,12.6]
[1722091961108,5.3978,185.26,185.22,5.3989]
[1722091961109,12.6,185.26,185.22,5.3989]
[1722091961436,32.6,185.25,185.18,12.6]
[1722091961606,5.3984,185.24,185.18,17.9999]
[1722091961927,5.3984,185.24,185.19,5.3998]
[1722091962117,19.07193351,185.24,185.18,5.4001]
[1722091962311,19.07193351,185.24,185.19,5.3997]
[1722091962520,12.6,185.24,185.19,5.3997]
[1722091962701,37.9981,185.25,185.19,5.3997]
[1722091962901,37.9981,185.25,185.2,5.3995]
[1722091963426,37.9981,185.25,185.16,82.13460294]
[1722091963427,37.9981,185.25,185.19,5.3997]
[1722091964530,12.6,185.25,185.21,5.3992]
[1722091965139,5.3972,185.29,185.21,12.6]
[1722091965339,17.9972,185.29,185.23,5.3986]
[1722091965554,12.6,185.29,185.24,5.3982]
[1722091965933,12.6,185.28,185.24,5.3982]
[1722091966133,12.6,185.28,185.2,12.6]
[1722091966359,17.9972,185.28,185.23,5.3985]
[1722091966536,17.9972,185.28,185.21,57.6]
[1722091966739,17.9972,185.28,185.22,5.3989]
[1722091967037,17.9976,185.27,185.21,5.3992]
[1722091967344,12.6,185.27,185.22,5.3988]
[1722091967742,12.6,185.27,185.23,5.3986]
[1722091968252,5.397,185.29,185.22,12.6]
[1722091968253,12.6,185.29,185.22,12.6]
[1722091968463,12.6,185.29,185.25,5.3979]
[1722091968748,16.016,185.33,185.25,12.6]
[1722091968952,17.9961,185.32,185.26,5.3977]
[1722091970150,16.016,185.33,185.25,5.398]
[1722091970151,12.6,185.31,185.25,5.398]
[1722091970353,17.9964,185.31,185.25,5.398]
[1722091970540,17.9964,185.31,185.26,5.3977]
[1722091970740,17.9964,185.31,185.25,5.398]
[1722091970741,12.6,185.31,185.25,5.398]
[1722091971142,17.9965,185.31,185.25,5.398]
[1722091971349,13.4877,185.36,185.24,12.6]
[1722091971549,5.3952,185.35,185.26,12.6]
[1722091971738,12.6,185.33,185.26,12.6]
[1722091971940,12.6,185.33,185.24,12.6]
[1722091971941,12.6,185.31,185.24,12.6]
[1722091972148,11.6355,185.34,185.25,12.6]
[1722091972351,12.6,185.32,185.29,5.3967]
[1722091973347,12.6,185.3,185.25,5.3978]
[1722091973736,1.07353351,185.35,185.24,12.6]
[1722091973935,12.6,185.31,185.24,12.6]
[1722091974142,1.07353351,185.35,185.24,12.6]
[1722091974343,12.6,185.31,185.24,12.6]
[1722091974555,12.6,185.3,185.23,28.5834]
[1722091974857,12.6,185.31,185.24,57.6]
[1722091975241,15.1804,185.37,185.27,12.6]
[1722091975440,12.6,185.35,185.29,12.6]
[1722091975639,15.1804,185.37,185.29,12.6]
[1722091975640,12.6,185.36,185.29,12.6]
[1722091975854,12.6,185.35,185.32,5.3959]
[1722091976458,12.6,185.35,185.31,5.3963]
[1722091976658,12.6,185.33,185.29,5.3966]
[1722091977142,6.46873351,185.35,185.29,5.3969]
[1722091977143,12.6,185.32,185.29,5.3969]
[1722091977747,12.6,185.32,185.28,5.3971]
[1722091978363,6.46873351,185.35,185.29,5.3968]
[1722091978662,12.6,185.32,185.29,5.3968]
[1722091978870,16.25393351,185.37,185.32,5.396]
[1722091979052,16.25393351,185.37,185.32,5.3958]
[1722091979053,12.6,185.34,185.32,5.3958]
[1722091979249,15.1804,185.37,185.32,5.3958]
[1722091979466,12.6,185.34,185.32,5.3958]
[1722091979673,12.6,185.34,185.32,5.396]
[1722091980035,12.6,185.35,185.32,5.396]
[1722091980667,12.6,185.35,185.28,12.6]
[1722091980668,12.6,185.35,185.29,12.6]
[1722091980845,12.6,185.37,185.34,5.3952]
[1722091981052,12.6,185.37,185.3,45.0]
[1722091981255,12.6,185.34,185.3,45.0]
[1722091981443,12.6,185.33,185.3,50.3966]
[1722091981764,12.6,185.32,185.25,12.6]
[1722091981973,12.6,185.32,185.27,5.3973]
[1722091982142,12.6,185.32,185.28,50.3971]
[1722091982339,5.3955,185.34,185.29,5.3968]
[1722091982582,12.6,185.32,185.29,5.3968]
[1722091982944,12.6,185.32,185.28,5.3972]
[1722091983164,12.6,185.29,185.23,15.9834]
[1722091983555,12.6,185.29,185.26,5.3975]
[1722091983756,12.6,185.29,185.25,5.398]
[1722091983957,12.6,185.29,185.26,5.3977]
[1722091984160,12.6,185.3,185.26,5.3977]
[1722091984677,12.6,185.31,185.24,12.6]
[1722091984968,20.5761,185.34,185.28,5.3971]
[1722091985156,12.6,185.33,185.29,5.3968]
[1722091985368,15.1804,185.38,185.27,12.6]
[1722091985552,12.6,185.34,185.28,45.0]
[1722091985748,20.5747,185.38,185.29,12.6]
[1722091985954,12.6,185.35,185.32,5.3959]
[1722091986471,6.46813351,185.37,185.3,5.3963]
[1722091986651,12.6,185.35,185.3,5.3963]
[1722091987047,12.6,185.35,185.28,45.0]
[1722091987048,6.46813351,185.37,185.31,5.3963]
[1722091987365,20.0,185.36,185.31,5.3963]
[1722091987574,20.0,185.36,185.28,46.0790703]
[1722091987762,20.0,185.37,185.32,5.3958]
[1722091987961,25.3946,185.37,185.29,0.17]
[1722091988165,25.3946,185.37,185.28,35.05]
[1722091988483,25.3946,185.37,185.31,5.3962]
[1722091988978,20.0,185.37,185.28,35.05]
[1722091989148,25.3947,185.37,185.31,5.3963]
[1722091989471,25.3947,185.37,185.3,5.3966]
[1722091989472,5.3951,185.36,185.3,5.3966]
[1722091989676,20.0,185.35,185.3,5.3966]
[1722091990045,20.0,185.35,185.31,5.3963]
[1722091990849,25.3953,185.35,185.22,1.07910236]
[1722091991048,25.3953,185.35,185.21,6.4969]
[1722091991049,5.3955,185.34,185.28,5.3969]
[1722091991282,5.3955,185.34,185.23,15.9834]
[1722091991571,5.3955,185.34,185.29,5.3969]
[1722091991774,26.46873351,185.35,185.29,5.3969]
[1722091992665,6.46873351,185.35,185.29,5.3969]
[1722091992872,6.46903351,185.34,185.28,5.3971]
[1722091993075,6.46933351,185.33,185.28,5.3971]
[1722091993284,5.3948,185.37,185.24,1.07931214]
[1722091993574,26.46843351,185.36,185.3,5.3966]
[1722091993779,1.07353351,185.35,185.3,5.3966]
[1722091993949,1.07353351,185.35,185.28,5.3971]
[1722091994149,1.07353351,185.35,185.16,82.13460294]
[1722091994150,25.21,185.29,185.16,82.13460294]
[1722091994480,20.0,185.28,185.16,82.13460294]
[1722091994650,1.07353351,185.27,185.19,5.3998]
[1722091994881,5.3983,185.25,185.19,5.3998]
[1722091995113,20.0,185.24,185.19,5.3998]
[1722091995401,26.47193351,185.24,185.18,5.4001]
[1722091995606,25.3984,185.24,185.18,5.4001]
[1722091996209,20.0,185.24,185.16,82.13460294]
[1722091996398,5.3981,185.25,185.16,82.13460294]
[1722091996580,20.0,185.24,185.16,82.13460294]
[1722091996780,20.0,185.24,185.17,45.0]
[1722091997411,5.3984,185.24,185.18,5.3998]
[1722091997618,20.0,185.23,185.18,5.3998]
[1722091998907,5.3984,185.24,185.18,5.3998]
[1722091999929,5.3994,185.21,185.16,82.13460294]
[1722092000718,31.6627,185.26,185.16,82.13460294]
[1722092001031,20.0,185.25,185.16,82.13460294]
[1722092001327,5.3985,185.24,185.18,5.4]
[1722092001507,20.0,185.25,185.16,82.13460294]
[1722092001702,20.0,185.25,185.17,45.0]
[1722092002009,6.68162375,185.3,185.18,1.07968674]
[1722092002010,5.3975,185.28,185.18,1.07968674]
[1722092002218,5.3969,185.29,185.23,5.3986]
[1722092002810,5.3975,185.27,185.21,5.3992]
[1722092003002,5.3978,185.26,185.2,5.3995]
[1722092003823,5.3975,185.27,185.21,50.3992]
[1722092004034,5.397,185.29,185.21,45.0]
[1722092004207,22.2047,185.31,185.24,5.3983]
[1722092004406,22.2047,185.31,185.25,50.398]
[1722092004615,27.6013,185.31,185.25,50.398]
[1722092004808,22.2047,185.31,185.26,5.3976]
[1722092005034,15.752,185.31,185.26,5.3976]
[1722092005620,5.3962,185.32,185.26,5.3976]
[1722092005823,20.0,185.31,185.26,5.3976]
[1722092006137,25.3963,185.31,185.25,50.398]
[1722092006937,5.3966,185.3,185.25,45.0]
[1722092008210,5.3969,185.29,185.25,45.0]
[1722092008816,5.3969,185.29,185.24,45.0]
[1722092009017,5.3969,185.29,185.24,50.3983]
[1722092009238,5.3966,185.3,185.24,50.3983]
[1722092009778,5.3975,185.27,185.21,17.62598716]
[1722092009931,38.7001,185.33,185.22,45.0]
[1722092010246,5.3967,185.3,185.24,5.3983]
[1722092010406,5.3969,185.29,185.25,45.0]
[1722092010609,5.3969,185.29,185.23,5.3986]
[1722092010809,5.3969,185.29,185.24,45.0]
[1722092012131,5.3969,185.29,185.24,50.3983]
[1722092012336,5.3966,185.3,185.24,50.3983]
[1722092014831,5.3966,185.3,185.25,5.398]
[1722092015036,20.0,185.32,185.24,45.0]
[1722092015344,5.396,185.33,185.27,5.3973]
[1722092015642,5.396,185.33,185.28,1.07926857]
[1722092015844,20.0,185.32,185.27,5.3973]
[1722092016645,5.3951,185.36,185.3,5.3964]
[1722092017828,5.3951,185.36,185.31,5.3962]
[1722092018351,25.21,185.39,185.26,1.24913303]
[1722092018559,5.3949,185.36,185.3,5.3963]
[1722092018763,5.3952,185.35,185.3,5.3963]
[1722092018939,1.07353351,185.37,185.27,5.5672]
[1722092019137,25.21,185.36,185.24,45.0]
[1722092019335,20.0,185.35,185.29,5.3968]
[1722092019535,20.0,185.35,185.3,45.0]
[1722092019763,20.0,185.35,185.3,5.3964]
[1722092019935,20.0,185.35,185.28,5.3969]
[1722092020145,20.0,185.35,185.29,5.3968]
[1722092020645,25.3952,185.35,185.25,1.41913954]
[1722092020966,20.0,185.35,185.25,0.34]
[1722092021344,5.3955,185.34,185.28,5.3971]
[1722092021547,20.0,185.33,185.29,45.0]
[1722092021749,25.3958,185.33,185.29,45.0]
[1722092021945,5.396,185.32,185.26,5.3978]
[1722092022464,45.21,185.33,185.24,5.3983]
[1722092022644,5.3962,185.32,185.26,5.3977]
[1722092022845,20.0,185.31,185.26,5.3977]
[1722092023166,25.3964,185.31,185.26,5.3977]
[1722092023662,20.0,185.31,185.21,16.5466]
[1722092024259,5.397,185.29,185.23,5.3984]
[1722092024466,5.3972,185.28,185.23,5.3984]
[1722092024863,5.3975,185.28,185.17,1.07946396]
[1722092025182,5.3975,185.28,185.22,5.3988]
[1722092025340,5.3976,185.27,185.22,5.3988]
[1722092026373,5.3976,185.27,185.21,5.3992]
[1722092026966,5.3978,185.26,185.22,45.0]
[1722092027173,5.3978,185.26,185.21,50.3991]
[1722092027746,5.3975,185.27,185.21,50.3991]
[1722092027947,5.3975,185.27,185.22,5.3989]
[1722092028150,5.3975,185.27,185.21,50.3992]
[1722092029473,5.3975,185.27,185.22,5.3989]
[1722092030174,34.56463351,185.31,185.21,45.0]
[1722092030380,5.3982,185.25,185.21,45.0]
[1722092030577,5.3982,185.25,185.2,45.0]
[1722092030967,5.3978,185.26,185.2,50.3994]
[1722092031475,5.3975,185.27,185.21,5.3991]
[1722092031847,5.3978,185.26,185.2,45.0]
[1722092032060,5.3978,185.26,185.2,50.3995]
[1722092032474,5.3978,185.26,185.2,5.3995]
[1722092033058,12.62,185.24,185.2,5.3995]
[1722092033448,12.62,185.23,185.18,5.4]
[1722092033866,12.62,185.22,185.18,5.4]
[1722092035580,77.16000329,185.31,185.21,5.3992]
[1722092035766,5.3975,185.27,185.21,5.3992]
[1722092036079,12.62,185.28,185.24,5.3981]
[1722092036774,12.62,185.28,185.25,5.398]
[1722092037364,5.3964,185.31,185.25,5.398]
[1722092037682,12.62,185.29,185.26,5.3978]
[1722092038060,12.62,185.28,185.25,5.3978]
[1722092038472,12.62,185.28,185.24,5.3983]
[1722092038663,12.62,185.28,185.25,5.398]
[1722092039291,5.3963,185.31,185.25,5.398]
[1722092039457,20.0,185.3,185.25,5.398]
[1722092039806,13.4881,185.35,185.19,16.62461193]
[1722092040085,5.396,185.32,185.26,5.3975]
[1722092040760,25.23,185.34,185.26,5.3975]
[1722092040761,5.3964,185.31,185.26,5.3975]
[1722092040960,5.3964,185.31,185.25,5.398]
[1722092041269,5.3964,185.31,185.2,0.34]
[1722092041270,5.3964,185.31,185.26,5.3977]
[1722092041989,5.3957,185.33,185.2,1.41938551]
[1722092042288,26.46963351,185.32,185.26,5.3978]
[1722092042461,5.3963,185.31,185.26,5.3978]
[1722092043090,21.07353351,185.32,185.2,65.34]
[1722092043389,5.3966,185.3,185.24,5.3981]
[1722092043767,1.07353351,185.32,185.24,5.3981]
[1722092043969,5.397,185.29,185.24,5.3981]
[1722092044162,1.07353351,185.32,185.2,5.3995]
[1722092044163,25.23,185.31,185.2,5.3995]
[1722092044368,5.3977,185.27,185.21,5.399]
[1722092044569,5.3977,185.27,185.22,5.3989]
[1722092046997,6.47123351,185.27,185.22,5.3989]
[1722092047308,15.4243,185.29,185.16,82.13460294]
[1722092047309,1.07353351,185.28,185.16,82.13460294]
[1722092047588,20.0,185.28,185.17,66.41970705]
[1722092047767,20.0,185.28,185.24,5.3982]
[1722092048293,5.3976,185.27,185.22,5.3989]
[1722092048481,25.3973,185.28,185.22,5.3989]
[1722092048793,20.0,185.28,185.23,5.3986]
[1722092049193,20.0,185.28,185.18,1.07964248]
[1722092050063,20.0,185.28,185.24,5.3983]
[1722092051101,20.0,185.28,185.25,5.3979]
[1722092051410,20.0,185.28,185.18,1.07964248]
[1722092051707,20.0,185.28,185.19,0.34]
[1722092052082,20.0,185.28,185.24,5.3983]
[1722092052401,20.0,185.28,185.23,5.3986]
[1722092052915,20.8213,185.29,185.24,5.3983]
[1722092053214,5.3972,185.28,185.17,66.07960077]
[1722092053413,5.3972,185.28,185.18,0.34]
[1722092053719,1.07353351,185.27,185.16,82.13460294]
[1722092054014,20.0,185.27,185.16,82.13460294]
[1722092054191,5.3981,185.25,185.2,5.3995]
[1722092054838,20.0,185.27,185.22,5.3989]
[1722092054988,25.3974,185.28,185.22,5.3989]
[1722092055183,20.0,185.28,185.23,5.3984]
[1722092056188,20.0,185.28,185.24,5.3983]
[1722092056404,20.0,185.28,185.25,5.398]
[1722092056622,15.4243,185.29,185.25,5.398]
[1722092057197,16.49783351,185.29,185.25,5.398]
[1722092057396,16.49783351,185.29,185.24,5.3983]
[1722092057397,15.4243,185.29,185.24,5.3983]
[1722092057600,15.5333,185.35,185.18,1.0795042]
[1722092057883,20.0,185.34,185.22,15.0632]
[1722092058087,20.0,185.34,185.23,46.41924202]
[1722092058288,15.5333,185.35,185.24,1.07921957]
[1722092058496,20.9285,185.35,185.29,5.3968]
[1722092058693,5.396,185.33,185.27,5.3972]
[1722092058899,5.3969,185.29,185.24,5.3983]
[1722092059397,5.3967,185.3,185.24,5.3983]
[1722092059831,14.56283351,185.34,185.23,5.3986]
[1722092059832,5.3969,185.29,185.23,5.3986]
[1722092060324,14.56283351,185.34,185.21,5.399]
[1722092060325,5.3976,185.27,185.21,5.399]
[1722092060619,5.3976,185.27,185.22,45.0]
[1722092060794,5.3976,185.27,185.22,50.3989]
[1722092061127,12.62,185.27,185.23,5.3986]
[1722092061296,12.62,185.27,185.24,45.0]
[1722092061620,12.62,185.26,185.24,45.0]
[1722092061795,12.62,185.26,185.19,12.62]
[1722092062005,5.3976,185.27,185.18,27.6832]
[1722092062006,12.62,185.25,185.18,27.6832]